bitfinex/quotes_BTCUSD_20251027
["timestamp","ask_amount","ask_price","bid_price","bid_amount"]
[1761605725563,1.14841774,114200.0,114190.0,0.15454773]
[1761605725985,1.15441774,114200.0,114190.0,0.15454773]
[1761605726775,1.22021016,114200.0,114190.0,0.15454773]
[1761605728645,0.41428207,114200.0,114190.0,0.15454773]
[1761605728791,0.75465999,114200.0,114190.0,0.15454773]
[1761605729423,0.73081999,114200.0,114190.0,0.17085773]
[1761605729627,0.72481999,114200.0,114190.0,0.17085773]
[1761605729834,0.72045303,114200.0,114190.0,0.17085773]
[1761605730045,0.74696303,114200.0,114190.0,0.15454773]
[1761605730244,0.75496303,114200.0,114190.0,0.15454773]
[1761605730829,0.73145303,114200.0,114190.0,0.17085773]
[1761605731024,0.32625872,114200.0,114190.0,0.20665773]
[1761605731432,0.66733597,114200.0,114190.0,0.20665773]
[1761605731792,0.66737516,114200.0,114190.0,0.20665773]
[1761605732776,0.68257516,114200.0,114190.0,0.20665773]
[1761605733084,0.69085516,114200.0,114190.0,0.18249773]
[1761605733294,0.71436516,114200.0,114190.0,0.16618773]
[1761605733495,1.07895159,114200.0,114190.0,0.15454773]
[1761605734912,1.10246077,114200.0,114190.0,0.15454773]
[1761605737387,1.10246077,114200.0,114190.0,0.00062773]
[1761605737595,1.49012595,114200.0,114190.0,0.21054773]
[1761605737817,1.46661677,114200.0,114190.0,0.21054773]
[1761605739925,1.46661677,114200.0,114190.0,0.00062773]
[1761605739926,3.00822942,114200.0,114190.0,0.00062773]
[1761605740140,1.89893727,114200.0,114190.0,0.00062773]
[1761605740572,1.83304189,114200.0,114190.0,0.00062773]
[1761605740989,1.90093727,114200.0,114190.0,0.00062773]
[1761605741220,1.90093727,114200.0,114180.0,0.0044]
[1761605741221,0.90431954,114190.0,114180.0,0.0044]
[1761605741445,1.11561168,114190.0,114180.0,0.0044]
[1761605741650,1.14741168,114190.0,114180.0,0.0044]
[1761605741865,1.13128642,114190.0,114180.0,0.0044]
[1761605742297,0.40211356,114190.0,114180.0,0.0044]
[1761605742507,1.16260606,114190.0,114180.0,0.00488459]
[1761605742919,1.17360606,114190.0,114180.0,0.00488459]
[1761605743568,1.17860606,114190.0,114180.0,0.00488459]
[1761605746210,1.13161816,114190.0,114180.0,0.00488459]
[1761605746867,1.13161816,114190.0,114180.0,0.00509388]
[1761605747083,1.1985457,114190.0,114180.0,0.00509388]
[1761605747775,1.19852065,114190.0,114180.0,0.00509388]
[1761605748410,1.22198554,114190.0,114180.0,0.00509388]
[1761605751512,1.58657197,114190.0,114180.0,0.00509388]
[1761605751722,1.22198554,114190.0,114180.0,0.00509388]
[1761605752287,1.1906659,114190.0,114180.0,0.00509388]
[1761605754177,1.3446259,114190.0,114180.0,0.00509388]
[1761605754827,0.5513443,114180.0,114170.0,0.20953388]
[1761605755036,1.42946086,114180.0,114170.0,0.20953388]
[1761605755251,1.44466086,114180.0,114170.0,0.20953388]
[1761605755469,1.43649621,114180.0,114170.0,0.20953388]
[1761605755895,1.44149621,114180.0,114170.0,0.20953388]
[1761605757608,0.72032335,114180.0,114170.0,0.05553388]
[1761605757831,1.44949621,114180.0,114170.0,0.05553388]
[1761605760507,1.44949621,114180.0,114170.0,0.0557432]
[1761605762262,0.72032335,114180.0,114170.0,0.0557432]
[1761605762485,1.44949621,114180.0,114170.0,0.0557432]
[1761605765385,1.45764447,114180.0,114170.0,0.0557432]
[1761605768194,1.48110936,114180.0,114170.0,0.0557432]
[1761605769503,1.49744105,114180.0,114170.0,0.0557432]
[1761605770650,2.22661391,114180.0,114170.0,1e-08]
[1761605770853,1.88555049,114180.0,114170.0,1e-08]
[1761605771278,1.91688918,114180.0,114170.0,1e-08]
[1761605771496,1.91688918,114180.0,114170.0,0.13148001]
[1761605771747,1.91188918,114180.0,114170.0,0.13148001]
[1761605771948,1.52081926,114180.0,114170.0,0.18752001]
[1761605772169,1.53181926,114180.0,114170.0,0.18752001]
[1761605772371,1.87290128,114180.0,114170.0,0.15392001]
[1761605772568,1.89640361,114180.0,114170.0,0.15392001]
[1761605772806,1.53181586,114180.0,114170.0,0.15392001]
[1761605773213,1.53181586,114180.0,114170.0,1e-08]
[1761605773416,1.86190128,114180.0,114170.0,0.21004001]
[1761605773590,1.88039909,114180.0,114170.0,0.21004001]
[1761605773821,1.88839909,114180.0,114170.0,0.21004001]
[1761605774022,1.89339909,114180.0,114170.0,0.21004001]
[1761605774398,1.89339909,114180.0,114170.0,1e-08]
[1761605774607,1.89339909,114180.0,114170.0,0.21008001]
[1761605774809,1.89339909,114180.0,114170.0,0.15416001]
[1761605775015,1.89339909,114180.0,114170.0,0.21020001]
[1761605775218,1.89339909,114180.0,114170.0,1e-08]
[1761605775370,1.89339909,114180.0,114170.0,0.21020001]
[1761605776213,1.52881266,114180.0,114170.0,0.21020001]
[1761605779355,0.7996398,114180.0,114170.0,0.21020001]
[1761605779576,1.89339909,114180.0,114170.0,0.21020001]
[1761605779802,1.89339909,114180.0,114170.0,1e-08]
[1761605780161,2.97366056,114180.0,114170.0,1e-08]
[1761605780339,3.17939408,114180.0,114170.0,1e-08]
[1761605780553,3.15159182,114180.0,114170.0,1e-08]
[1761605780766,3.15159182,114180.0,114160.0,1e-08]
[1761605780767,1.69613891,114170.0,114160.0,1e-08]
[1761605781012,1.87607003,114170.0,114160.0,1e-08]
[1761605781240,1.89233003,114170.0,114160.0,1e-08]
[1761605781470,1.88233004,114170.0,114160.0,1e-08]
[1761605781704,1.89233003,114170.0,114160.0,1e-08]
[1761605783142,1.90833003,114170.0,114160.0,1e-08]
[1761605783743,1.9346407,114170.0,114160.0,1e-08]
[1761605784374,1.92464071,114170.0,114160.0,1e-08]
[1761605784583,1.9346407,114170.0,114160.0,1e-08]
[1761605784792,1.92464071,114170.0,114160.0,1e-08]
[1761605785195,1.9346407,114170.0,114160.0,1e-08]
[1761605785602,1.92464071,114170.0,114160.0,1e-08]
[1761605785806,2.1778407,114170.0,114160.0,1e-08]
[1761605786026,3.27159999,114170.0,114160.0,1e-08]
[1761605786451,2.1778407,114170.0,114160.0,1e-08]
[1761605786668,1.08408141,114170.0,114160.0,1e-08]
[1761605787124,1.07408142,114170.0,114160.0,1e-08]
[1761605787333,1.08408141,114170.0,114160.0,1e-08]
[1761605792953,1.11529674,114170.0,114160.0,1e-08]
[1761605794054,1.11520463,114170.0,114160.0,1e-08]
[1761605796192,1.10520464,114170.0,114160.0,1e-08]
[1761605796414,1.11520463,114170.0,114160.0,1e-08]
[1761605796867,0.84742497,114160.0,114150.0,1e-08]
[1761605797059,1.18150464,114160.0,114150.0,1e-08]
[1761605797345,1.19774464,114160.0,114150.0,1e-08]
[1761605797775,1.24157672,114160.0,114150.0,1e-08]
[1761605798208,0.5152234,114140.0,114130.0,0.0304]
[1761605798472,0.69973442,114140.0,114130.0,0.0304]
[1761605798688,0.74054442,114140.0,114130.0,0.0304]
[1761605798895,1.10558421,114140.0,114130.0,0.0304]
[1761605799113,1.10558421,114140.0,114130.0,0.02996]
[1761605799549,1.10607022,114140.0,114130.0,0.02996]
[1761605799762,1.12507022,114140.0,114130.0,0.02996]
[1761605800593,1.06547122,114140.0,114130.0,0.02996]
[1761605801424,1.0966535,114140.0,114130.0,0.02996]
[1761605801639,1.0866535,114140.0,114130.0,0.02996]
[1761605801847,0.72161371,114140.0,114130.0,0.02996]
[1761605802057,1.0886535,114140.0,114130.0,0.02996]
[1761605802484,1.0916535,114140.0,114130.0,0.02996]
[1761605802688,1.0916535,114140.0,114130.0,0.18436]
[1761605802914,1.0916535,114140.0,114130.0,0.24044]
[1761605803964,0.7270835,114140.0,114130.0,0.24044]
[1761605804134,0.66409821,114140.0,114130.0,0.29246884]
[1761605804750,0.66409821,114140.0,114130.0,0.4677076]
[1761605805118,0.63905842,114140.0,114130.0,0.4677076]
[1761605805321,1.00409821,114140.0,114130.0,0.26905884]
[1761605806151,1.02866821,114140.0,114130.0,0.25320884]
[1761605806443,1.02866821,114140.0,114130.0,0.24085884]
[1761605808264,1.02286473,114140.0,114130.0,0.26905884]
[1761605808437,1.02286473,114140.0,114130.0,0.24085884]
[1761605808438,1.04743473,114140.0,114130.0,0.24085884]
[1761605808853,0.68239494,114140.0,114130.0,0.24085884]
[1761605809072,1.04743473,114140.0,114130.0,0.24085884]
[1761605810190,1.05558558,114140.0,114130.0,0.24085884]
[1761605811682,0.69054579,114140.0,114130.0,0.24085884]
[1761605811884,1.05558558,114140.0,114130.0,0.03037884]
[1761605812094,0.69054579,114140.0,114130.0,0.18477884]
[1761605812297,1.05558558,114140.0,114130.0,0.03037884]
[1761605812500,1.05558558,114140.0,114130.0,0.24085884]
[1761605812703,1.05558558,114140.0,114130.0,0.24081884]
[1761605813708,1.05558558,114140.0,114130.0,0.03037884]
[1761605813894,1.05558558,114140.0,114130.0,0.24081884]
[1761605815324,1.04745237,114140.0,114130.0,0.24081884]
[1761605818203,1.04745237,114140.0,114130.0,0.24077884]
[1761605818436,1.04745237,114140.0,114130.0,0.03037884]
[1761605818669,1.04745237,114140.0,114130.0,0.24077884]
[1761605821245,1.08363465,114140.0,114130.0,0.03037884]
[1761605821478,1.09178525,114140.0,114130.0,0.24081884]
[1761605821693,1.09178525,114140.0,114130.0,0.18473884]
[1761605821929,1.09178525,114140.0,114130.0,0.03037884]
[1761605822151,1.11526545,114140.0,114130.0,0.24081884]
[1761605822377,1.11526545,114140.0,114130.0,0.03037884]
[1761605822597,1.1315644,114140.0,114130.0,0.18473884]
[1761605823241,1.1285644,114140.0,114130.0,0.18473884]
[1761605823461,1.1275644,114140.0,114130.0,0.18473884]
[1761605824106,1.1275644,114140.0,114130.0,0.03037884]
[1761605824326,1.1275644,114140.0,114130.0,0.18473884]
[1761605824777,1.1980993,114140.0,114130.0,0.18473884]
[1761605825050,0.89725085,114140.0,114130.0,0.18473884]
[1761605825321,1.26229064,114140.0,114130.0,0.18473884]
[1761605828493,1.26229064,114140.0,114130.0,0.18469884]
[1761605829740,1.62733043,114140.0,114130.0,0.03037884]
[1761605830604,1.60385023,114140.0,114130.0,0.03037884]
[1761605830815,1.59885023,114140.0,114130.0,0.03037884]
[1761605831022,1.58585023,114140.0,114130.0,0.03037884]
[1761605831227,1.59085023,114140.0,114130.0,0.03037884]
[1761605831446,1.60685023,114140.0,114130.0,0.03037884]
[1761605831992,1.69895023,114140.0,114130.0,0.03037884]
[1761605832212,1.60685023,114140.0,114130.0,0.03037884]
[1761605833443,1.63030177,114140.0,114130.0,0.03037884]
[1761605833695,1.60685023,114140.0,114130.0,0.03037884]
[1761605835522,1.63029589,114140.0,114130.0,0.03037884]
[1761605836254,1.60685023,114140.0,114130.0,0.03037884]
[1761605838140,1.6302943,114140.0,114130.0,0.03037884]
[1761605843436,1.24181044,114140.0,114130.0,0.03037884]
[1761605847686,1.26527708,114140.0,114130.0,0.03037884]
[1761605848303,1.24181044,114140.0,114130.0,0.03037884]
[1761605851526,1.28864953,114140.0,114130.0,0.03037884]
[1761605852189,1.38074953,114140.0,114130.0,0.03037884]
[1761605852414,1.28864953,114140.0,114130.0,0.03037884]
[1761605853270,1.65368932,114140.0,114130.0,0.03037884]
[1761605853705,1.28864953,114140.0,114130.0,0.03037884]
[1761605853962,2.01892426,114140.0,114130.0,0.03037884]
[1761605858072,1.98770197,114140.0,114130.0,0.03037884]
[1761605862750,2.01902786,114140.0,114130.0,0.03037884]
[1761605870292,0.92371334,114140.0,114130.0,0.03037884]
[1761605870494,1.65392302,114140.0,114130.0,0.03037884]
[1761605872977,1.65392302,114140.0,114130.0,0.02237884]
[1761605876277,1.60708393,114140.0,114130.0,0.02237884]
[1761605876701,1.60708393,114140.0,114130.0,0.07845884]
[1761605877346,0.77650063,114140.0,114130.0,0.07845884]
[1761605877551,1.49887577,114140.0,114130.0,0.07845884]
[1761605877766,1.53505805,114140.0,114130.0,0.07845884]
[1761605878193,1.48774544,114140.0,114130.0,0.07845884]
[1761605878394,1.47144649,114140.0,114130.0,0.07845884]
[1761605878599,1.48044649,114140.0,114130.0,0.07845884]
[1761605878802,1.47544649,114140.0,114130.0,0.07845884]
[1761605879022,1.47144649,114140.0,114130.0,0.07845884]
[1761605879223,1.48044649,114140.0,114130.0,0.07845884]
[1761605881434,1.45695514,114140.0,114130.0,0.07845884]
[1761605885389,1.45695514,114140.0,114130.0,0.02237884]
[1761605885607,1.82205998,114140.0,114130.0,0.23257884]
[1761605886624,1.82205998,114140.0,114130.0,0.23253884]
[1761605886835,1.84555133,114140.0,114130.0,0.02237884]
[1761605887045,0.75023681,114140.0,114130.0,0.17645884]
[1761605887262,1.84555133,114140.0,114130.0,0.17645884]
[1761605887684,1.84255133,114140.0,114130.0,0.17645884]
[1761605887944,1.84155133,114140.0,114130.0,0.17645884]
[1761605888374,1.85855133,114140.0,114130.0,0.17845884]
[1761605895408,1.87485203,114140.0,114130.0,0.17845884]
[1761605897198,1.90116303,114140.0,114130.0,0.17845884]
[1761605898142,1.87485203,114140.0,114130.0,0.17845884]
[1761605902680,1.87485203,114140.0,114130.0,0.17345884]
[1761605904090,1.87485203,114140.0,114130.0,0.22953884]
[1761605905501,1.90617792,114140.0,114130.0,0.22953884]
[1761605907202,1.93248894,114140.0,114130.0,0.22953884]
[1761605911541,0.83717442,114140.0,114130.0,0.22953884]
[1761605911746,1.93248894,114140.0,114130.0,0.22953884]
[1761605912759,0.83717442,114140.0,114130.0,0.22953884]
[1761605913007,1.93248894,114140.0,114130.0,0.22953884]
[1761605913610,0.83717442,114140.0,114130.0,0.22953884]
[1761605913805,1.93248894,114140.0,114130.0,0.22953884]
[1761605914391,1.90617792,114140.0,114130.0,0.22953884]
[1761605915773,0.8108634,114140.0,114130.0,0.22953884]
[1761605915977,1.20226416,114140.0,114130.0,0.22953884]
[1761605917534,1.17595314,114140.0,114130.0,0.22953884]
[1761605917748,1.14462725,114140.0,114130.0,0.22953884]
[1761605918160,1.14465818,114140.0,114130.0,0.22953884]
[1761605918828,1.14467267,114140.0,114130.0,0.22953884]
[1761605929021,1.14467267,114140.0,114130.0,0.4570876]
[1761605929022,0.68785789,114140.0,114130.0,0.4570876]
[1761605929274,1.02785789,114140.0,114130.0,0.28184884]
[1761605929539,0.67969232,114140.0,114130.0,0.4570876]
[1761605929771,0.28752842,114140.0,114130.0,0.47019519]
[1761605930027,0.11230502,114140.0,114130.0,0.47019519]
[1761605930267,0.11230502,114140.0,114130.0,0.4580876]
[1761605930504,0.10730502,114140.0,114130.0,0.4580876]
[1761605930752,0.09030502,114140.0,114130.0,0.4560876]
[1761605931005,0.63861816,114140.0,114130.0,0.4620876]
[1761605931243,0.63861816,114140.0,114130.0,0.48739202]
[1761605931850,0.46339476,114140.0,114130.0,0.48739202]
[1761605932025,0.63861816,114140.0,114130.0,0.48739202]
[1761605933005,0.65442816,114140.0,114130.0,0.48739202]
[1761605933230,0.63861816,114140.0,114130.0,0.48739202]
[1761605934110,0.68538816,114140.0,114130.0,0.4086976]
[1761605934494,0.66271816,114140.0,114130.0,0.4248576]
[1761605935534,0.66271816,114140.0,114130.0,0.24961884]
[1761605935738,0.66271816,114140.0,114130.0,0.4248576]
[1761605935969,0.68538816,114140.0,114130.0,0.23345884]
[1761605937261,0.66271816,114140.0,114130.0,0.27414884]
[1761605937397,0.64690816,114140.0,114130.0,0.4610076]
[1761605937610,0.64690816,114140.0,114130.0,0.28576884]
[1761605937811,0.66271816,114140.0,114130.0,0.28576884]
[1761605938085,0.66271816,114140.0,114130.0,0.24507884]
[1761605938239,0.68685816,114140.0,114130.0,0.02337884]
[1761605938442,0.68685816,114140.0,114130.0,0.23341884]
[1761605942198,0.66271816,114140.0,114130.0,0.24920884]
[1761605943159,0.68685816,114140.0,114130.0,0.23341884]
[1761605944001,0.68685816,114140.0,114130.0,0.02337884]
[1761605944416,0.68685816,114140.0,114130.0,0.23341884]
[1761605944631,0.68685816,114140.0,114130.0,0.17733884]
[1761605944891,0.68685816,114140.0,114130.0,0.23341884]
[1761605945096,0.68685816,114140.0,114130.0,0.02337884]
[1761605945312,0.68685816,114140.0,114130.0,0.23341884]
[1761605946902,1.06304044,114140.0,114130.0,0.02337884]
[1761605947120,1.06304044,114140.0,114130.0,0.07945884]
[1761605947121,1.08997528,114140.0,114130.0,0.07945884]
[1761605947346,1.11628528,114140.0,114130.0,0.23341884]
[1761605948434,0.75119554,114140.0,114130.0,0.23341884]
[1761605948656,1.11628528,114140.0,114130.0,0.02337884]
[1761605948867,1.11628528,114140.0,114130.0,0.17733884]
[1761605949075,1.11628528,114140.0,114130.0,0.23341884]
[1761605949711,1.11628528,114140.0,114130.0,0.02337884]
[1761605949922,1.35948528,114140.0,114130.0,0.23341884]
[1761605951004,1.35948528,114140.0,114130.0,0.02337884]
[1761605951232,1.38297663,114140.0,114130.0,0.23341884]
[1761605951479,1.01788689,114140.0,114130.0,0.23341884]
[1761605951759,0.99439554,114140.0,114130.0,0.23341884]
[1761605951970,1.35948528,114140.0,114130.0,0.23341884]
[1761605954203,0.99439554,114140.0,114130.0,0.23341884]
[1761605954653,1.35948528,114140.0,114130.0,0.23341884]
[1761605958699,0.96808554,114140.0,114130.0,0.23341884]
[1761605959128,1.33317528,114140.0,114130.0,0.23341884]
[1761605959768,1.30903528,114140.0,114130.0,0.24959884]
[1761605959979,1.3008834,114140.0,114130.0,0.26108884]
[1761605960418,1.26470112,114140.0,114130.0,0.26108884]
[1761605960626,1.3008834,114140.0,114130.0,0.26108884]
[1761605962547,0.93579366,114140.0,114130.0,0.26108884]
[1761605962754,1.3008834,114140.0,114130.0,0.26108884]
[1761605963196,1.30903714,114140.0,114130.0,0.26108884]
[1761605963401,1.33268714,114140.0,114130.0,0.26108884]
[1761605963815,1.33268714,114140.0,114130.0,0.23341884]
[1761605964020,1.29650486,114140.0,114130.0,0.23341884]
[1761605964231,1.33268714,114140.0,114130.0,0.23341884]
[1761605965522,1.30903714,114140.0,114130.0,0.24959884]
[1761605967081,1.3008834,114140.0,114130.0,0.24959884]
[1761605968455,0.93579366,114140.0,114130.0,0.24959884]
[1761605968655,1.3008834,114140.0,114130.0,0.26142884]
[1761605968860,0.53551138,114140.0,114130.0,0.28590884]
[1761605969082,0.88181816,114140.0,114130.0,0.28590884]
[1761605970715,0.89694816,114140.0,114130.0,0.26142884]
[1761605970849,0.90523816,114140.0,114130.0,0.26142884]
[1761605971272,0.90523816,114140.0,114130.0,0.20538884]
[1761605971486,0.90523816,114140.0,114130.0,0.26146884]
[1761605972450,0.88181816,114140.0,114130.0,0.28594884]
[1761605972652,0.88181816,114140.0,114130.0,0.4611876]
[1761605972855,0.51672842,114140.0,114130.0,0.4611876]
[1761605973280,0.27352842,114140.0,114130.0,0.4611876]
[1761605973683,0.27352842,114140.0,114130.0,0.28594884]
[1761605975787,0.63847968,114140.0,114130.0,0.28594884]
[1761605978773,1.00343094,114140.0,114130.0,0.28594884]
[1761605982752,1.00343094,114140.0,114130.0,0.28694884]
[1761605982983,1.00343094,114140.0,114130.0,0.28594884]
[1761605983815,1.00343094,114140.0,114130.0,0.33534909]
[1761605984357,1.00343094,114140.0,114130.0,0.28594884]
[1761605987476,0.27352842,114140.0,114130.0,0.28694884]
[1761605987653,0.63847968,114140.0,114130.0,0.4621876]
[1761605987860,0.27352842,114140.0,114130.0,0.4621876]
[1761605988303,0.27352842,114140.0,114130.0,0.82713886]
[1761605988304,0.09830502,114140.0,114130.0,0.82713886]
[1761605988512,0.09830502,114140.0,114130.0,0.91695787]
[1761605988710,0.09530502,114140.0,114130.0,0.57830972]
[1761605989050,0.09130502,114140.0,114130.0,0.57230972]
[1761605989365,0.09730502,114140.0,114130.0,0.58730972]
[1761605990870,0.09730502,114140.0,114130.0,0.95226098]
[1761605992277,0.09730502,114140.0,114130.0,0.58730972]
[1761605992589,0.09730502,114140.0,114130.0,0.95226098]
[1761605993440,0.09730502,114140.0,114130.0,0.58730972]
[1761605993643,0.09730502,114140.0,114130.0,0.95226098]
[1761605993880,0.09730502,114140.0,114130.0,0.58730972]
[1761605994147,0.09730502,114140.0,114130.0,0.95226098]
[1761605997630,0.09730502,114140.0,114130.0,0.58730972]
[1761605998009,0.09730502,114140.0,114130.0,0.95226098]
[1761605998010,0.00748601,114140.0,114130.0,0.95226098]
[1761606000973,0.09730502,114140.0,114130.0,0.53126972]
[1761606001177,0.09730502,114140.0,114130.0,0.89626098]
[1761606001379,0.09730502,114140.0,114130.0,0.95234098]
[1761606002930,0.00748601,114140.0,114130.0,0.95234098]
[1761606004895,0.00648601,114140.0,114130.0,0.95234098]
[1761606005095,0.00048601,114140.0,114130.0,0.93734098]
[1761606005432,0.00048601,114140.0,114130.0,0.36222972]
[1761606005653,0.00048601,114140.0,114130.0,0.27241071]
[1761606005654,0.09030502,114140.0,114130.0,0.27241071]
[1761606005870,0.09430502,114140.0,114130.0,0.50257071]
[1761606006367,0.09430502,114140.0,114130.0,0.50357071]
[1761606007405,0.09430502,114140.0,114130.0,0.29341071]
[1761606007607,0.09030502,114140.0,114130.0,0.4562676]
[1761606007835,0.10630502,114140.0,114130.0,0.4572676]
[1761606008095,0.10630502,114140.0,114130.0,0.54708661]
[1761606008297,0.10630502,114140.0,114130.0,0.91203787]
[1761606009134,0.10630502,114140.0,114130.0,0.54708661]
[1761606009343,0.10630502,114140.0,114130.0,0.91203787]
[1761606010353,0.10630502,114140.0,114130.0,0.51630845]
[1761606010564,0.10630502,114140.0,114130.0,0.57238845]
[1761606010794,0.30492842,114140.0,114130.0,0.4317876]
[1761606011040,0.28152842,114140.0,114130.0,0.4557176]
[1761606011247,0.64647968,114140.0,114130.0,0.4557176]
[1761606011453,0.28152842,114140.0,114130.0,0.4557176]
[1761606011660,0.64647968,114140.0,114130.0,0.4557176]
[1761606012883,0.10630502,114140.0,114130.0,0.5201036]
[1761606013118,0.10630502,114140.0,114130.0,0.5211036]
[1761606013968,0.10630502,114140.0,114130.0,0.5201036]
[1761606014177,0.10630502,114140.0,114130.0,0.5211036]
[1761606014385,0.10630502,114140.0,114130.0,0.88605486]
[1761606016396,0.10630502,114140.0,114130.0,0.91235446]
[1761606017052,0.10630502,114140.0,114130.0,0.5474032]
[1761606017259,0.10630502,114140.0,114130.0,0.4903632]
[1761606017466,0.10630502,114140.0,114130.0,0.5474432]
[1761606017664,0.10630502,114140.0,114130.0,0.2718572]
[1761606017868,0.10630502,114140.0,114130.0,0.4557576]
[1761606018071,0.10630502,114140.0,114130.0,0.4567576]
[1761606018290,0.10630502,114140.0,114130.0,0.4557576]
[1761606018494,0.10630502,114140.0,114130.0,0.4567576]
[1761606018739,0.10630502,114140.0,114130.0,0.91152787]
[1761606020159,0.10630502,114140.0,114130.0,0.54657661]
[1761606020398,0.10630502,114140.0,114130.0,0.91152787]
[1761606022364,0.10630502,114140.0,114130.0,0.54657661]
[1761606024837,0.10630502,114140.0,114130.0,0.91152787]
[1761606025027,0.10630502,114140.0,114130.0,0.54657661]
[1761606025453,0.10630502,114140.0,114130.0,0.91152787]
[1761606026734,0.10630502,114140.0,114130.0,0.91052787]
[1761606026897,0.10630502,114140.0,114130.0,0.91152787]
[1761606027268,0.10630502,114140.0,114130.0,0.54657661]
[1761606027720,0.10630502,114140.0,114130.0,0.91152787]
[1761606027945,0.10630502,114140.0,114130.0,0.54657661]
[1761606028349,0.10630502,114140.0,114130.0,0.33537661]
[1761606028552,0.10630502,114140.0,114130.0,0.54549661]
[1761606028912,0.10630502,114140.0,114130.0,0.54649661]
[1761606031443,0.10630502,114140.0,114130.0,0.54549661]
[1761606032266,0.10630502,114140.0,114130.0,0.54649661]
[1761606032470,0.10630502,114140.0,114130.0,0.54549661]
[1761606033079,0.10630502,114140.0,114130.0,0.54649661]
[1761606034157,0.10630502,114140.0,114130.0,0.91144787]
[1761606037690,0.10630502,114140.0,114130.0,0.54649661]
[1761606046000,0.10630502,114140.0,114130.0,0.91133372]
[1761606047258,0.10630502,114140.0,114130.0,0.93763337]
[1761606051106,0.10630502,114140.0,114130.0,0.91133372]
[1761606054672,0.10630502,114140.0,114130.0,0.91033372]
[1761606054913,0.28152842,114140.0,114130.0,0.33537661]
[1761606055136,0.69311553,114140.0,114130.0,0.22845884]
[1761606055568,0.67008553,114140.0,114130.0,0.24508884]
[1761606055786,0.69311553,114140.0,114130.0,0.22845884]
[1761606056754,0.30524842,114140.0,114130.0,0.24508884]
[1761606057188,0.32827842,114140.0,114130.0,0.24508884]
[1761606057405,0.32827842,114140.0,114130.0,0.22845884]
[1761606057828,0.32827842,114140.0,114130.0,0.4036976]
[1761606058040,0.30524842,114140.0,114130.0,0.4203276]
[1761606058256,0.30524842,114140.0,114130.0,0.4320476]
[1761606059335,0.30524842,114140.0,114130.0,0.25680884]
[1761606059548,0.69401553,114140.0,114130.0,0.17237884]
[1761606059763,0.69401553,114140.0,114130.0,0.22845884]
[1761606061496,0.69401553,114140.0,114130.0,0.4036976]
[1761606061934,0.69401553,114140.0,114130.0,0.22845884]
[1761606064629,0.69401553,114140.0,114130.0,0.01837884]
[1761606064848,0.69401553,114140.0,114130.0,0.22845884]
[1761606064849,1.08899556,114140.0,114130.0,0.22845884]
[1761606065928,1.08799556,114140.0,114130.0,0.22845884]
[1761606066352,1.07299556,114140.0,114130.0,0.22745884]
[1761606066777,1.11299556,114140.0,114130.0,0.23045884]
[1761606068514,1.09419781,114140.0,114130.0,0.23045884]
[1761606069665,1.11297384,114140.0,114130.0,0.23045884]
[1761606070825,0.74813673,114140.0,114130.0,0.23045884]
[1761606071022,1.11297384,114140.0,114130.0,0.23045884]
[1761606073588,1.12111491,114140.0,114130.0,0.23045884]
[1761606075585,1.12111491,114140.0,114130.0,0.17433884]
[1761606076862,1.12111491,114140.0,114130.0,0.02037884]
[1761606077099,1.16087602,114140.0,114130.0,0.02037884]
[1761606077320,1.16087602,114140.0,114130.0,0.17433884]
[1761606077541,1.18718856,114140.0,114130.0,0.17433884]
[1761606077751,1.18718856,114140.0,114130.0,0.02037884]
[1761606077961,1.18418856,114140.0,114130.0,0.17433884]
[1761606078386,1.18918856,114140.0,114130.0,0.17433884]
[1761606078596,1.15218856,114140.0,114130.0,0.26477884]
[1761606079023,1.18318856,114140.0,114130.0,0.26877884]
[1761606079524,1.54802567,114140.0,114130.0,0.26877884]
[1761606079770,1.54802567,114140.0,114100.0,0.06606459]
[1761606079771,0.17526947,114110.0,114100.0,0.06606459]
[1761606079981,0.17526947,114110.0,114090.0,0.04421081]
[1761606079982,0.5614671,114100.0,114090.0,0.04421081]
[1761606080203,1.55045365,114100.0,114090.0,0.04421081]
[1761606080433,1.40617364,114100.0,114090.0,0.04381081]
[1761606080656,1.40617364,114100.0,114080.0,1e-08]
[1761606080657,0.56148247,114090.0,114080.0,1e-08]
[1761606080903,1.34772626,114090.0,114080.0,1e-08]
[1761606081142,1.39789281,114090.0,114080.0,1e-08]
[1761606081354,1.39885132,114090.0,114080.0,0.05608001]
[1761606081598,1.39876956,114090.0,114080.0,0.11980001]
[1761606081820,1.02023818,114090.0,114080.0,0.11980001]
[1761606082275,1.38507529,114090.0,114080.0,1e-08]
[1761606082715,1.38507529,114090.0,114080.0,0.07568001]
[1761606082716,1.39107529,114090.0,114080.0,0.07568001]
[1761606082943,1.76859529,114090.0,114080.0,1e-08]
[1761606083157,1.76359529,114090.0,114080.0,1e-08]
[1761606083388,1.78870531,114090.0,114080.0,1e-08]
[1761606083601,1.79369532,114090.0,114080.0,1e-08]
[1761606083811,1.80990596,114090.0,114080.0,1e-08]
[1761606084025,1.87070924,114090.0,114080.0,1e-08]
[1761606084242,0.34,114070.0,114050.0,0.0104]
[1761606084453,0.34,114070.0,114050.0,0.16604]
[1761606084454,1.7577772,114060.0,114050.0,0.16604]
[1761606084671,1.38968307,114060.0,114050.0,0.16604]
[1761606085315,1.38968307,114060.0,114020.0,0.0021]
[1761606085316,0.21157472,114030.0,114020.0,0.0021]
[1761606085533,0.30139373,114030.0,114020.0,0.15782]
[1761606085745,1.37106795,114030.0,114020.0,0.15782]
[1761606086377,1.00623084,114030.0,114020.0,0.15782]
[1761606086594,1.00671595,114030.0,114020.0,0.15782]
[1761606087510,1.01171595,114030.0,114020.0,0.15782]
[1761606087736,0.27969656,114030.0,114020.0,0.19861]
[1761606088167,0.27069656,114030.0,114020.0,0.19861]
[1761606088398,0.27769656,114030.0,114020.0,0.19861]
[1761606088606,0.27769656,114030.0,114020.0,0.15782]
[1761606088813,0.27069656,114030.0,114020.0,0.17351]
[1761606089018,0.27869656,114030.0,114020.0,0.17351]
[1761606089228,0.26569656,114030.0,114020.0,0.17351]
[1761606089670,0.64253367,114030.0,114020.0,0.01779]
[1761606089883,0.64253367,114030.0,114020.0,0.22975]
[1761606090095,0.63853367,114030.0,114020.0,0.1579]
[1761606090305,0.27369656,114030.0,114020.0,0.22971]
[1761606090747,0.27369656,114030.0,114020.0,0.00440602]
[1761606090748,0.63053367,114030.0,114020.0,0.00440602]
[1761606090990,1.00671595,114030.0,114020.0,0.21632602]
[1761606091205,1.01571595,114030.0,114020.0,0.21632602]
[1761606091418,1.01571595,114030.0,114020.0,0.00440602]
[1761606091645,0.64187884,114030.0,114020.0,0.00440602]
[1761606091860,1.28942654,114030.0,114020.0,0.21632602]
[1761606092281,1.28042654,114030.0,114020.0,0.21632602]
[1761606092500,1.28942654,114030.0,114020.0,0.21632602]
[1761606092921,1.28942654,114030.0,114020.0,0.00440602]
[1761606093344,1.28942654,114030.0,114020.0,0.16020602]
[1761606093559,1.28942654,114030.0,114020.0,0.21632602]
[1761606093980,1.28942654,114030.0,114020.0,0.16016602]
[1761606094184,1.28942654,114030.0,114020.0,0.21628602]